[Event "Titled Tuesday Blitz May 11 2021"]
[White "Yuan, Qingyu"]
[Black "Mortazavi, Ali"]
[WhiteFideId "8609772"]
[BlackFideId "401323"]
[WhiteElo "2359"]
[BlackElo "2339"]
[Result "1-0"]
[Round "02"]
[TimeControl "180+1"]
[Date "2021.05.11"]
[WhiteClock "0:00:13"]
[BlackClock "0:00:08"]

1. e4 {[%clk 0:03:00]}  c6 {[%clk 0:03:00]} 2. d4 {[%clk 0:03:00]}  d5 {[%clk 0:03:00]} 3. e5 {[%clk 0:03:01]}  Bf5 {[%clk 0:03:01]} 4. Nd2 {[%clk 0:03:01]}  e6 {[%clk 0:02:59]} 5. Nb3 {[%clk 0:03:01]}  Ne7 {[%clk 0:02:57]} 6. Nf3 {[%clk 0:03:01]}  Ng6 {[%clk 0:02:57]} 7. Be2 {[%clk 0:03:00]}  Nd7 {[%clk 0:02:58]} 8. O-O {[%clk 0:02:59]}  f6 {[%clk 0:02:58]} 9. exf6 {[%clk 0:02:57]}  Qxf6 {[%clk 0:02:58]} 10. Na5 {[%clk 0:02:36]}  Rb8 {[%clk 0:02:51]} 11. c4 {[%clk 0:02:36]}  Bd6 {[%clk 0:02:48]} 12. Bg5 {[%clk 0:02:23]}  Qf7 {[%clk 0:02:48]} 13. Qd2 {[%clk 0:02:17]}  O-O {[%clk 0:02:45]} 14. b4 {[%clk 0:01:57]}  Nf6 {[%clk 0:02:38]} 15. Be3 {[%clk 0:01:37]}  Ne4 {[%clk 0:02:38]} 16. Qb2 {[%clk 0:01:37]}  Nf4 {[%clk 0:02:13]} 17. Bxf4 {[%clk 0:01:37]}  Bxf4 {[%clk 0:02:13]} 18. b5 {[%clk 0:01:21]}  Bc7 {[%clk 0:01:54]} 19. Nb3 {[%clk 0:01:18]}  Kh8 {[%clk 0:01:43]} 20. Ne5 {[%clk 0:01:14]}  Bxe5 {[%clk 0:01:39]} 21. dxe5 {[%clk 0:01:14]}  Qg6 {[%clk 0:01:35]} 22. f3 {[%clk 0:01:01]}  Ng5 {[%clk 0:01:22]} 23. Kh1 {[%clk 0:00:56]}  Nf7 {[%clk 0:01:00]} 24. Rad1 {[%clk 0:00:53]}  Bc2 {[%clk 0:00:56]} 25. Rd2 {[%clk 0:00:47]}  Bxb3 {[%clk 0:00:57]} 26. axb3 {[%clk 0:00:46]}  Qh6 {[%clk 0:00:53]} 27. f4 {[%clk 0:00:34]}  Rbd8 {[%clk 0:00:40]} 28. Rd3 {[%clk 0:00:34]}  dxc4 {[%clk 0:00:37]} 29. Rh3 {[%clk 0:00:27]}  Qg6 {[%clk 0:00:36]} 30. Bxc4 {[%clk 0:00:23]}  Nh6 {[%clk 0:00:33]} 31. bxc6 {[%clk 0:00:21]}  bxc6 {[%clk 0:00:32]} 32. Qe2 {[%clk 0:00:21]}  Nf5 {[%clk 0:00:28]} 33. Bd3 {[%clk 0:00:21]}  h6 {[%clk 0:00:26]} 34. g4 {[%clk 0:00:21]}  Nd4 {[%clk 0:00:26]} 35. Qe3 {[%clk 0:00:17]}  Qf7 {[%clk 0:00:23]} 36. Qe4 {[%clk 0:00:16]}  g6 {[%clk 0:00:20]} 37. Rxh6+ {[%clk 0:00:17]}  Kg8 {[%clk 0:00:18]} 38. Rxg6+ {[%clk 0:00:17]}  Kh8 {[%clk 0:00:19]} 39. Rh6+ {[%clk 0:00:17]}  Kg8 {[%clk 0:00:19]} 40. Rf6 {[%clk 0:00:15]}  Qe7 {[%clk 0:00:17]} 41. Qg6+ {[%clk 0:00:14]}  Qg7 {[%clk 0:00:17]} 42. Qh5 {[%clk 0:00:14]}  Rxf6 {[%clk 0:00:16]} 43. exf6 {[%clk 0:00:14]}  Qxf6 {[%clk 0:00:17]} 44. g5 {[%clk 0:00:13]}  Qg7 {[%clk 0:00:15]} 45. Be4 {[%clk 0:00:12]}  c5 {[%clk 0:00:13]} 46. Qg4 {[%clk 0:00:12]}  Re8 {[%clk 0:00:13]} 47. h4 {[%clk 0:00:12]}  a5 {[%clk 0:00:12]} 48. h5 {[%clk 0:00:13]}  e5 {[%clk 0:00:11]} 49. f5 {[%clk 0:00:12]}  c4 {[%clk 0:00:09]} 50. f6 {[%clk 0:00:13]}  Qc7 {[%clk 0:00:08]} 51. f7+ {[%clk 0:00:12]}  Qxf7 {[%clk 0:00:07]} 52. Rxf7 {[%clk 0:00:13]}  Kxf7 {[%clk 0:00:08]} 53. Bd5+ {[%clk 0:00:13]} 1-0


[Site "https://www.chess.com"]

[Event "Titled Tuesday Blitz May 11 2021"]
[White "Zhurbinsky, David"]
[Black "Fernandez, Daniel Howard"]
[WhiteFideId "2072904"]
[BlackFideId "5801605"]
[WhiteElo "2478"]
[BlackElo "2468"]
[Result "0-1"]
[Round "02"]
[TimeControl "180+1"]
[Date "2021.05.11"]
[WhiteClock "0:01:16"]
[BlackClock "0:02:23"]

1. e4 {[%clk 0:03:00]}  e5 {[%clk 0:02:58]} 2. Nf3 {[%clk 0:02:59]}  Nc6 {[%clk 0:02:59]} 3. Bb5 {[%clk 0:02:58]}  a6 {[%clk 0:02:59]} 4. Ba4 {[%clk 0:02:58]}  Nf6 {[%clk 0:02:59]} 5. O-O {[%clk 0:02:58]}  Be7 {[%clk 0:02:59]} 6. Re1 {[%clk 0:02:58]}  b5 {[%clk 0:02:58]} 7. Bb3 {[%clk 0:02:59]}  O-O {[%clk 0:02:57]} 8. c3 {[%clk 0:02:59]}  d5 {[%clk 0:02:57]} 9. exd5 {[%clk 0:03:00]}  Nxd5 {[%clk 0:02:57]} 10. Nxe5 {[%clk 0:03:00]}  Nxe5 {[%clk 0:02:58]} 11. Rxe5 {[%clk 0:03:01]}  c6 {[%clk 0:02:59]} 12. d3 {[%clk 0:03:02]}  Bd6 {[%clk 0:02:59]} 13. Re1 {[%clk 0:03:02]}  Bf5 {[%clk 0:02:50]} 14. Qf3 {[%clk 0:02:54]}  Qh4 {[%clk 0:02:50]} 15. g3 {[%clk 0:02:31]}  Qh3 {[%clk 0:02:49]} 16. Bxd5 {[%clk 0:02:26]}  cxd5 {[%clk 0:02:49]} 17. Qxd5 {[%clk 0:02:24]}  Rad8 {[%clk 0:02:49]} 18. Qg2 {[%clk 0:02:21]}  Qh5 {[%clk 0:02:49]} 19. d4 {[%clk 0:02:16]}  Rfe8 {[%clk 0:02:45]} 20. Be3 {[%clk 0:01:46]}  Be4 {[%clk 0:02:45]} 21. f3 {[%clk 0:01:47]}  Bxf3 {[%clk 0:02:45]} 22. Qf2 {[%clk 0:01:46]}  Re6 {[%clk 0:02:46]} 23. Nd2 {[%clk 0:01:45]}  Bxg3 {[%clk 0:02:37]} 24. Qxf3 {[%clk 0:01:28]}  Qxh2+ {[%clk 0:02:34]} 25. Kf1 {[%clk 0:01:29]}  Rf6 {[%clk 0:02:32]} 26. Bg1 {[%clk 0:01:16]}  Qxd2 {[%clk 0:02:23]} 0-1


[Site "https://www.chess.com"]

[Event "Titled Tuesday Blitz May 11 2021"]
[White "elohunter1999"]
[Black "Ibrahimli, Murad"]
[BlackFideId "13410229"]
[WhiteElo "2544"]
[BlackElo "2109"]
[Result "1/2-1/2"]
[Round "02"]
[TimeControl "180+1"]
[Date "2021.05.11"]
[WhiteClock "0:00:19"]
[BlackClock "0:00:24"]

1. d4 {[%clk 0:03:00]}  d5 {[%clk 0:02:59]} 2. c4 {[%clk 0:03:00]}  e6 {[%clk 0:02:59]} 3. Nf3 {[%clk 0:02:59]}  Nf6 {[%clk 0:02:58]} 4. g3 {[%clk 0:02:58]}  Be7 {[%clk 0:02:57]} 5. Bg2 {[%clk 0:02:58]}  O-O {[%clk 0:02:57]} 6. O-O {[%clk 0:02:58]}  dxc4 {[%clk 0:02:58]} 7. Ne5 {[%clk 0:02:56]}  Qd6 {[%clk 0:02:54]} 8. Nc3 {[%clk 0:02:34]}  Rd8 {[%clk 0:02:50]} 9. Nxc4 {[%clk 0:02:33]}  Qa6 {[%clk 0:02:47]} 10. Qb3 {[%clk 0:02:29]}  Nc6 {[%clk 0:02:34]} 11. e3 {[%clk 0:02:16]}  Na5 {[%clk 0:02:33]} 12. Nxa5 {[%clk 0:02:16]}  Qxa5 {[%clk 0:02:34]} 13. Bd2 {[%clk 0:02:16]}  Qb6 {[%clk 0:02:30]} 14. Rfc1 {[%clk 0:02:02]}  c6 {[%clk 0:01:22]} 15. Na4 {[%clk 0:01:52]}  Qc7 {[%clk 0:01:22]} 16. Bb4 {[%clk 0:01:41]}  Bxb4 {[%clk 0:01:21]} 17. Qxb4 {[%clk 0:01:42]}  e5 {[%clk 0:01:22]} 18. dxe5 {[%clk 0:01:21]}  Qxe5 {[%clk 0:01:23]} 19. Rd1 {[%clk 0:01:20]}  Re8 {[%clk 0:01:24]} 20. Qd6 {[%clk 0:01:16]}  Qa5 {[%clk 0:01:18]} 21. Nc5 {[%clk 0:01:13]}  Bg4 {[%clk 0:01:08]} 22. Rd4 {[%clk 0:01:00]}  Qb6 {[%clk 0:00:59]} 23. Na4 {[%clk 0:00:44]}  Qb5 {[%clk 0:00:50]} 24. Rb4 {[%clk 0:00:42]}  Qe2 {[%clk 0:00:50]} 25. Nc3 {[%clk 0:00:37]}  Qa6 {[%clk 0:00:41]} 26. Ra4 {[%clk 0:00:20]}  Qb6 {[%clk 0:00:30]} 27. Rb4 {[%clk 0:00:20]}  Qa6 {[%clk 0:00:27]} 28. Ra4 {[%clk 0:00:20]}  Qb6 {[%clk 0:00:25]} 29. Rb4 {[%clk 0:00:19]}  Qa6 {[%clk 0:00:24]} 1/2-1/2


[Site "https://www.chess.com"]

[Event "Titled Tuesday Blitz May 11 2021"]
[White "AldokhinIvan"]
[Black "Wagner, Dennis"]
[BlackFideId "24650684"]
[WhiteElo "2573"]
[BlackElo "2355"]
[Result "0-1"]
[Round "03"]
[TimeControl "180+1"]
[Date "2021.05.11"]
[WhiteClock "0:00:05"]
[BlackClock "0:00:15"]

1. e4 {[%clk 0:03:00]}  e5 {[%clk 0:02:59]} 2. Nf3 {[%clk 0:03:00]}  Nc6 {[%clk 0:02:58]} 3. Bb5 {[%clk 0:03:00]}  a6 {[%clk 0:02:58]} 4. Ba4 {[%clk 0:02:58]}  Nf6 {[%clk 0:02:59]} 5. O-O {[%clk 0:02:56]}  b5 {[%clk 0:02:59]} 6. Bb3 {[%clk 0:02:56]}  Bc5 {[%clk 0:03:00]} 7. Nxe5 {[%clk 0:02:55]}  Nxe5 {[%clk 0:02:59]} 8. d4 {[%clk 0:02:55]}  Bxd4 {[%clk 0:02:59]} 9. Qxd4 {[%clk 0:02:55]}  d6 {[%clk 0:03:00]} 10. f4 {[%clk 0:02:55]}  Nc6 {[%clk 0:02:55]} 11. Qc3 {[%clk 0:02:49]}  Ne7 {[%clk 0:02:55]} 12. e5 {[%clk 0:02:28]}  Ne4 {[%clk 0:02:53]} 13. Qe1 {[%clk 0:02:03]}  Nc5 {[%clk 0:02:41]} 14. f5 {[%clk 0:01:40]}  Nxb3 {[%clk 0:02:03]} 15. axb3 {[%clk 0:01:24]}  dxe5 {[%clk 0:01:40]} 16. f6 {[%clk 0:00:48]}  gxf6 {[%clk 0:01:40]} 17. Rxf6 {[%clk 0:00:46]}  Ng6 {[%clk 0:01:37]} 18. Bg5 {[%clk 0:00:41]}  Qd4+ {[%clk 0:01:36]} 19. Be3 {[%clk 0:00:32]}  Qh4 {[%clk 0:01:06]} 20. Qxh4 {[%clk 0:00:23]}  Nxh4 {[%clk 0:01:06]} 21. Nc3 {[%clk 0:00:23]}  Bb7 {[%clk 0:01:03]} 22. g3 {[%clk 0:00:19]}  Nf3+ {[%clk 0:01:00]} 23. Kf2 {[%clk 0:00:13]}  Nxh2 {[%clk 0:01:00]} 24. Rf5 {[%clk 0:00:09]}  Ng4+ {[%clk 0:00:59]} 25. Ke2 {[%clk 0:00:10]}  h5 {[%clk 0:00:50]} 26. Raf1 {[%clk 0:00:10]}  Bg2 {[%clk 0:00:41]} 27. Rg1 {[%clk 0:00:07]}  Bh3 {[%clk 0:00:32]} 28. Bg5 {[%clk 0:00:05]}  Rg8 {[%clk 0:00:24]} 29. Nd5 {[%clk 0:00:05]}  Kd7 {[%clk 0:00:18]} 30. Bh4 {[%clk 0:00:04]}  Ke6 {[%clk 0:00:17]} 31. Ne3 {[%clk 0:00:04]}  Nxe3 {[%clk 0:00:17]} 32. Rf6+ {[%clk 0:00:05]}  Kd5 {[%clk 0:00:12]} 33. Kxe3 {[%clk 0:00:06]}  Be6 {[%clk 0:00:13]} 34. Rd1+ {[%clk 0:00:06]}  Kc6 {[%clk 0:00:13]} 35. c4 {[%clk 0:00:06]}  bxc4 {[%clk 0:00:13]} 36. bxc4 {[%clk 0:00:06]}  Rab8 {[%clk 0:00:14]} 37. Rd2 {[%clk 0:00:06]}  Rb3+ {[%clk 0:00:14]} 38. Ke4 {[%clk 0:00:07]}  Rg4+ {[%clk 0:00:14]} 39. Kxe5 {[%clk 0:00:05]}  Re3# {[%clk 0:00:15]} 0-1


[Site "https://www.chess.com"]

[Event "Titled Tuesday Blitz May 11 2021"]
[White "Ashiev, Eduard"]
[Black "Ortiz Suarez, Isan Reynaldo"]
[WhiteFideId "4130090"]
[BlackFideId "3507165"]
[WhiteElo "2106"]
[BlackElo "2539"]
[Result "0-1"]
[Round "03"]
[TimeControl "180+1"]
[Date "2021.05.11"]
[WhiteClock "0:00:01"]
[BlackClock "0:00:50"]

1. d4 {[%clk 0:03:00]}  Nf6 {[%clk 0:02:59]} 2. Nf3 {[%clk 0:03:00]}  e6 {[%clk 0:02:59]} 3. c4 {[%clk 0:02:59]}  b6 {[%clk 0:02:59]} 4. a3 {[%clk 0:02:59]}  Bb7 {[%clk 0:02:57]} 5. Nc3 {[%clk 0:02:59]}  d5 {[%clk 0:02:57]} 6. Bg5 {[%clk 0:02:57]}  Be7 {[%clk 0:02:56]} 7. Qa4+ {[%clk 0:02:56]}  c6 {[%clk 0:02:52]} 8. e3 {[%clk 0:02:55]}  O-O {[%clk 0:02:52]} 9. Rd1 {[%clk 0:02:54]}  Nbd7 {[%clk 0:02:51]} 10. cxd5 {[%clk 0:02:42]}  exd5 {[%clk 0:02:49]} 11. Bd3 {[%clk 0:02:41]}  h6 {[%clk 0:02:49]} 12. Bf4 {[%clk 0:02:31]}  Re8 {[%clk 0:02:48]} 13. O-O {[%clk 0:02:28]}  Nf8 {[%clk 0:02:25]} 14. h3 {[%clk 0:02:22]}  Ne6 {[%clk 0:02:25]} 15. Bh2 {[%clk 0:02:20]}  Ng5 {[%clk 0:02:18]} 16. Ne5 {[%clk 0:02:14]}  b5 {[%clk 0:02:17]} 17. Qc2 {[%clk 0:02:13]}  Rc8 {[%clk 0:02:14]} 18. Bf5 {[%clk 0:01:46]}  Ra8 {[%clk 0:02:13]} 19. f4 {[%clk 0:01:28]}  Ngh7 {[%clk 0:02:10]} 20. g4 {[%clk 0:01:06]}  a5 {[%clk 0:02:09]} 21. g5 {[%clk 0:00:54]}  hxg5 {[%clk 0:02:10]} 22. fxg5 {[%clk 0:00:54]}  Nxg5 {[%clk 0:02:07]} 23. Kh1 {[%clk 0:00:39]}  b4 {[%clk 0:02:06]} 24. Rg1 {[%clk 0:00:33]}  Nfe4 {[%clk 0:01:34]} 25. Nxe4 {[%clk 0:00:16]}  dxe4 {[%clk 0:01:35]} 26. h4 {[%clk 0:00:08]}  Nf3 {[%clk 0:01:27]} 27. Nxf3 {[%clk 0:00:07]}  exf3 {[%clk 0:01:28]} 28. Bh7+ {[%clk 0:00:05]}  Kf8 {[%clk 0:01:24]} 29. Rg4 {[%clk 0:00:04]}  c5 {[%clk 0:01:21]} 30. e4 {[%clk 0:00:04]}  cxd4 {[%clk 0:01:15]} 31. Rdg1 {[%clk 0:00:04]}  d3 {[%clk 0:01:05]} 32. Rxg7 {[%clk 0:00:01]}  Bd6 {[%clk 0:00:58]} 33. Rxf7+ {[%clk 0:00:01]}  Kxf7 {[%clk 0:00:56]} 34. Qc4+ {[%clk 0:00:01]}  Kf6 {[%clk 0:00:50]} 35. Rg6+ {[%clk 0:00:01]}  Ke7 {[%clk 0:00:50]} 0-1


[Site "https://www.chess.com"]

[Event "Titled Tuesday Blitz May 11 2021"]
[White "Banawa, Joel"]
[Black "Sztokbant, Bernardo Vainzoff"]
[WhiteFideId "2024055"]
[BlackFideId "2115956"]
[WhiteElo "2714"]
[BlackElo "2264"]
[Result "1-0"]
[Round "03"]
[TimeControl "180+1"]
[Date "2021.05.11"]
[WhiteClock "0:00:08"]
[BlackClock "0:00:01"]

1. e4 {[%clk 0:03:00]}  c6 {[%clk 0:02:57]} 2. d4 {[%clk 0:03:00]}  d5 {[%clk 0:02:58]} 3. Nc3 {[%clk 0:03:00]}  dxe4 {[%clk 0:02:58]} 4. Nxe4 {[%clk 0:03:01]}  Nf6 {[%clk 0:02:57]} 5. Nxf6+ {[%clk 0:03:01]}  exf6 {[%clk 0:02:58]} 6. c3 {[%clk 0:03:02]}  Bd6 {[%clk 0:02:58]} 7. Bd3 {[%clk 0:03:02]}  O-O {[%clk 0:02:55]} 8. Qc2 {[%clk 0:03:03]}  h5 {[%clk 0:02:51]} 9. Ne2 {[%clk 0:03:04]}  Re8 {[%clk 0:02:47]} 10. Be3 {[%clk 0:03:05]}  Nd7 {[%clk 0:02:46]} 11. Ng3 {[%clk 0:03:05]}  h4 {[%clk 0:02:44]} 12. Nf5 {[%clk 0:03:05]}  Bf4 {[%clk 0:02:37]} 13. Kd2 {[%clk 0:03:01]}  Bxe3+ {[%clk 0:02:37]} 14. fxe3 {[%clk 0:03:02]}  Nc5 {[%clk 0:02:21]} 15. Nxh4 {[%clk 0:02:57]}  Nxd3 {[%clk 0:02:18]} 16. Qxd3 {[%clk 0:02:58]}  g6 {[%clk 0:02:15]} 17. Nxg6 {[%clk 0:02:26]}  fxg6 {[%clk 0:02:15]} 18. Qxg6+ {[%clk 0:02:27]}  Kf8 {[%clk 0:02:13]} 19. Raf1 {[%clk 0:02:20]}  Re6 {[%clk 0:02:13]} 20. Qh6+ {[%clk 0:02:19]}  Ke7 {[%clk 0:02:07]} 21. e4 {[%clk 0:02:11]}  Qf8 {[%clk 0:01:59]} 22. Qf4 {[%clk 0:02:08]}  Qg7 {[%clk 0:01:47]} 23. g4 {[%clk 0:01:42]}  Qg5 {[%clk 0:01:45]} 24. h4 {[%clk 0:00:56]}  Qxf4+ {[%clk 0:01:44]} 25. Rxf4 {[%clk 0:00:57]}  Bd7 {[%clk 0:01:44]} 26. Ke3 {[%clk 0:00:38]}  Rg8 {[%clk 0:01:38]} 27. Kf3 {[%clk 0:00:37]}  Rd6 {[%clk 0:01:27]} 28. Rg1 {[%clk 0:00:30]}  b5 {[%clk 0:01:19]} 29. b3 {[%clk 0:00:24]}  a5 {[%clk 0:01:19]} 30. Ke3 {[%clk 0:00:23]}  Rg7 {[%clk 0:01:12]} 31. c4 {[%clk 0:00:23]}  bxc4 {[%clk 0:01:08]} 32. bxc4 {[%clk 0:00:24]}  Bc8 {[%clk 0:01:02]} 33. c5 {[%clk 0:00:19]}  Rd8 {[%clk 0:00:54]} 34. a3 {[%clk 0:00:13]}  Rdg8 {[%clk 0:00:51]} 35. Kf3 {[%clk 0:00:12]}  Rh8 {[%clk 0:00:50]} 36. Rh1 {[%clk 0:00:09]}  Rgh7 {[%clk 0:00:49]} 37. h5 {[%clk 0:00:08]}  Rg7 {[%clk 0:00:46]} 38. e5 {[%clk 0:00:06]}  fxe5 {[%clk 0:00:45]} 39. Re1 {[%clk 0:00:07]}  Rg5 {[%clk 0:00:42]} 40. dxe5 {[%clk 0:00:07]}  Rd8 {[%clk 0:00:39]} 41. Kg3 {[%clk 0:00:05]}  Rd3+ {[%clk 0:00:21]} 42. Kh4 {[%clk 0:00:05]}  Rg8 {[%clk 0:00:22]} 43. e6 {[%clk 0:00:05]}  Rd5 {[%clk 0:00:13]} 44. Rf7+ {[%clk 0:00:04]}  Ke8 {[%clk 0:00:12]} 45. Rc7 {[%clk 0:00:05]}  Kd8 {[%clk 0:00:09]} 46. Rxc6 {[%clk 0:00:04]}  Rd4 {[%clk 0:00:09]} 47. Rd6+ {[%clk 0:00:05]}  Rxd6 {[%clk 0:00:08]} 48. cxd6 {[%clk 0:00:06]}  Re8 {[%clk 0:00:05]} 49. d7 {[%clk 0:00:06]}  Bxd7 {[%clk 0:00:06]} 50. h6 {[%clk 0:00:05]}  Rh8 {[%clk 0:00:02]} 51. exd7 {[%clk 0:00:04]}  Rxh6+ {[%clk 0:00:02]} 52. Kg5 {[%clk 0:00:05]}  Rd6 {[%clk 0:00:02]} 53. Re5 {[%clk 0:00:05]}  Kxd7 {[%clk 0:00:01]} 54. Rxa5 {[%clk 0:00:05]}  Rd3 {[%clk 0:00:01]} 55. Kh4 {[%clk 0:00:06]}  Kc7 {[%clk 0:00:02]} 56. a4 {[%clk 0:00:06]}  Rd1 {[%clk 0:00:02]} 57. Rf5 {[%clk 0:00:06]}  Ra1 {[%clk 0:00:02]} 58. Rf4 {[%clk 0:00:06]}  Kd7 {[%clk 0:00:03]} 59. g5 {[%clk 0:00:07]}  Ke6 {[%clk 0:00:04]} 60. g6 {[%clk 0:00:07]}  Rg1 {[%clk 0:00:04]} 61. Rg4 {[%clk 0:00:07]}  Rh1+ {[%clk 0:00:04]} 62. Kg5 {[%clk 0:00:08]}  Ke7 {[%clk 0:00:02]} 63. Re4+ {[%clk 0:00:07]}  Kf8 {[%clk 0:00:02]} 64. Rf4+ {[%clk 0:00:07]}  Kg8 {[%clk 0:00:02]} 65. Kf6 {[%clk 0:00:07]}  Rb1 {[%clk 0:00:02]} 66. Re4 {[%clk 0:00:07]}  Rb6+ {[%clk 0:00:02]} 67. Re6 {[%clk 0:00:07]}  Rb8 {[%clk 0:00:02]} 68. a5 {[%clk 0:00:08]}  Ra8 {[%clk 0:00:02]} 69. a6 {[%clk 0:00:08]}  Rb8 {[%clk 0:00:03]} 70. a7 {[%clk 0:00:08]}  Rf8+ {[%clk 0:00:02]} 71. Kg5 {[%clk 0:00:08]}  Ra8 {[%clk 0:00:03]} 72. Re7 {[%clk 0:00:07]}  Kf8 {[%clk 0:00:03]} 73. Rh7 {[%clk 0:00:06]}  Kg8 {[%clk 0:00:03]} 74. Rb7 {[%clk 0:00:07]}  Rxa7 {[%clk 0:00:01]} 75. Rxa7 {[%clk 0:00:08]}  Kh8 {[%clk 0:00:01]} 76. Kf6 {[%clk 0:00:08]} 1-0


[Site "https://www.chess.com"]

[Event "Titled Tuesday Blitz May 11 2021"]
[White "BeanScreen"]
[Black "Matthiesen, Martin"]
[BlackFideId "1404067"]
[WhiteElo "2710"]
[BlackElo "2337"]
[Result "1-0"]
[Round "03"]
[TimeControl "180+1"]
[Date "2021.05.11"]
[WhiteClock "0:00:49"]
[BlackClock "0:00:08"]

1. e4 {[%clk 0:03:00]}  c6 {[%clk 0:02:59]} 2. d4 {[%clk 0:03:00]}  d5 {[%clk 0:02:59]} 3. exd5 {[%clk 0:03:01]}  cxd5 {[%clk 0:02:59]} 4. Bd3 {[%clk 0:03:01]}  Nc6 {[%clk 0:02:58]} 5. c3 {[%clk 0:03:01]}  Nf6 {[%clk 0:02:59]} 6. Bf4 {[%clk 0:03:01]}  Bg4 {[%clk 0:02:58]} 7. Qb3 {[%clk 0:03:00]}  Qd7 {[%clk 0:02:54]} 8. Nd2 {[%clk 0:03:00]}  e6 {[%clk 0:02:54]} 9. Ngf3 {[%clk 0:03:00]}  Bd6 {[%clk 0:02:52]} 10. Bxd6 {[%clk 0:03:00]}  Qxd6 {[%clk 0:02:52]} 11. O-O {[%clk 0:03:01]}  O-O {[%clk 0:02:51]} 12. Rfe1 {[%clk 0:03:01]}  Bh5 {[%clk 0:02:46]} 13. Ne5 {[%clk 0:03:00]}  Bg6 {[%clk 0:02:44]} 14. Bxg6 {[%clk 0:02:57]}  hxg6 {[%clk 0:02:44]} 15. f4 {[%clk 0:02:55]}  Ne7 {[%clk 0:02:39]} 16. Re3 {[%clk 0:02:51]}  Nh5 {[%clk 0:02:21]} 17. Rf1 {[%clk 0:02:49]}  f6 {[%clk 0:02:20]} 18. Nd3 {[%clk 0:02:47]}  f5 {[%clk 0:02:09]} 19. Ne5 {[%clk 0:02:28]}  Nf6 {[%clk 0:02:01]} 20. Rh3 {[%clk 0:02:22]}  Ne4 {[%clk 0:01:25]} 21. Qd1 {[%clk 0:02:08]}  Rf6 {[%clk 0:01:21]} 22. Qe1 {[%clk 0:02:05]}  Nxd2 {[%clk 0:01:12]} 23. Qxd2 {[%clk 0:01:50]}  Kf8 {[%clk 0:00:24]} 24. Qf2 {[%clk 0:01:01]}  Ke8 {[%clk 0:00:17]} 25. Rh8+ {[%clk 0:01:00]}  Rf8 {[%clk 0:00:16]} 26. Rxf8+ {[%clk 0:01:01]}  Kxf8 {[%clk 0:00:17]} 27. Qh4 {[%clk 0:01:02]}  Kg8 {[%clk 0:00:17]} 28. Rf3 {[%clk 0:01:00]}  g5 {[%clk 0:00:10]} 29. fxg5 {[%clk 0:00:57]}  Kf8 {[%clk 0:00:08]} 30. Qh5 {[%clk 0:00:49]} 1-0


[Site "https://www.chess.com"]

[Event "Titled Tuesday Blitz May 11 2021"]
[White "Bellahcene, Bilel"]
[Black "Abdrlauf, Elham"]
[WhiteFideId "696358"]
[BlackFideId "1533533"]
[WhiteElo "2493"]
[BlackElo "2326"]
[Result "1-0"]
[Round "03"]
[TimeControl "180+1"]
[Date "2021.05.11"]
[WhiteClock "0:00:24"]
[BlackClock "0:00:01"]

1. e4 {[%clk 0:02:54]}  c6 {[%clk 0:02:45]} 2. d4 {[%clk 0:02:48]}  d5 {[%clk 0:02:46]} 3. f3 {[%clk 0:02:48]}  e6 {[%clk 0:02:46]} 4. Nc3 {[%clk 0:02:48]}  Nf6 {[%clk 0:02:46]} 5. e5 {[%clk 0:02:48]}  Nfd7 {[%clk 0:02:46]} 6. f4 {[%clk 0:02:49]}  c5 {[%clk 0:02:47]} 7. Nf3 {[%clk 0:02:50]}  Nc6 {[%clk 0:02:47]} 8. Be3 {[%clk 0:02:51]}  Be7 {[%clk 0:02:42]} 9. Qd2 {[%clk 0:02:47]}  a6 {[%clk 0:02:42]} 10. dxc5 {[%clk 0:02:47]}  Nxc5 {[%clk 0:02:41]} 11. O-O-O {[%clk 0:02:47]}  b5 {[%clk 0:02:41]} 12. Qf2 {[%clk 0:02:45]}  b4 {[%clk 0:02:18]} 13. Nxd5 {[%clk 0:02:39]}  exd5 {[%clk 0:01:49]} 14. Bxc5 {[%clk 0:02:36]}  O-O {[%clk 0:01:49]} 15. Kb1 {[%clk 0:02:33]}  Bf5 {[%clk 0:01:35]} 16. Bd3 {[%clk 0:02:28]}  Qd7 {[%clk 0:01:27]} 17. Bxf5 {[%clk 0:02:02]}  Qxf5 {[%clk 0:01:28]} 18. Bxe7 {[%clk 0:02:02]}  Nxe7 {[%clk 0:01:28]} 19. Nd4 {[%clk 0:02:02]}  Qd7 {[%clk 0:01:18]} 20. f5 {[%clk 0:01:55]}  Nc6 {[%clk 0:01:16]} 21. Nxc6 {[%clk 0:01:53]}  Qxc6 {[%clk 0:01:17]} 22. Rd2 {[%clk 0:01:51]}  Rfe8 {[%clk 0:01:15]} 23. Qd4 {[%clk 0:01:43]}  Qc7 {[%clk 0:01:04]} 24. Re1 {[%clk 0:01:41]}  a5 {[%clk 0:01:04]} 25. e6 {[%clk 0:01:36]}  fxe6 {[%clk 0:00:56]} 26. fxe6 {[%clk 0:01:37]}  Rad8 {[%clk 0:00:47]} 27. Rde2 {[%clk 0:01:35]}  Qxh2 {[%clk 0:00:45]} 28. Re5 {[%clk 0:01:21]}  Rd6 {[%clk 0:00:34]} 29. e7 {[%clk 0:00:45]}  Rd7 {[%clk 0:00:26]} 30. g4 {[%clk 0:00:39]}  h6 {[%clk 0:00:16]} 31. g5 {[%clk 0:00:35]}  Rdxe7 {[%clk 0:00:05]} 32. Rxe7 {[%clk 0:00:35]}  Rxe7 {[%clk 0:00:05]} 33. Qxd5+ {[%clk 0:00:36]}  Kh7 {[%clk 0:00:04]} 34. Qd3+ {[%clk 0:00:27]}  g6 {[%clk 0:00:01]} 35. Rxe7+ {[%clk 0:00:24]} 1-0


[Site "https://www.chess.com"]

[Event "Titled Tuesday Blitz May 11 2021"]
[White "Belous, Vladimir"]
[Black "Vovk, Orest"]
[WhiteFideId "4174003"]
[BlackFideId "14113490"]
[WhiteElo "2583"]
[BlackElo "2203"]
[Result "1-0"]
[Round "03"]
[TimeControl "180+1"]
[Date "2021.05.11"]
[WhiteClock "0:01:33"]
[BlackClock "0:00:05"]

1. c4 {[%clk 0:03:00]}  Nc6 {[%clk 0:02:58]} 2. Nc3 {[%clk 0:02:58]}  Nf6 {[%clk 0:02:56]} 3. Nf3 {[%clk 0:02:55]}  d5 {[%clk 0:02:55]} 4. cxd5 {[%clk 0:02:54]}  Nxd5 {[%clk 0:02:56]} 5. g3 {[%clk 0:02:53]}  g6 {[%clk 0:02:54]} 6. h4 {[%clk 0:02:53]}  Bg4 {[%clk 0:02:48]} 7. Bg2 {[%clk 0:02:47]}  Bg7 {[%clk 0:02:31]} 8. Qa4 {[%clk 0:02:43]}  Nxc3 {[%clk 0:02:24]} 9. Qxg4 {[%clk 0:02:33]}  Nd5 {[%clk 0:02:19]} 10. h5 {[%clk 0:02:23]}  Nf6 {[%clk 0:02:07]} 11. Qg5 {[%clk 0:02:18]}  Ne4 {[%clk 0:01:43]} 12. Qf4 {[%clk 0:02:06]}  f5 {[%clk 0:01:22]} 13. hxg6 {[%clk 0:02:03]}  hxg6 {[%clk 0:01:19]} 14. Rxh8+ {[%clk 0:02:02]}  Bxh8 {[%clk 0:01:20]} 15. Qh6 {[%clk 0:01:59]}  Kf7 {[%clk 0:01:07]} 16. d3 {[%clk 0:01:56]}  Bg7 {[%clk 0:01:02]} 17. Qh7 {[%clk 0:01:56]}  Nb4 {[%clk 0:00:35]} 18. Bh6 {[%clk 0:01:56]}  Qh8 {[%clk 0:00:13]} 19. Ne5+ {[%clk 0:01:37]}  Ke6 {[%clk 0:00:06]} 20. Qxg6+ {[%clk 0:01:33]}  Bf6 {[%clk 0:00:06]} 21. Qf7+ {[%clk 0:01:33]}  Kxe5 {[%clk 0:00:06]} 22. Bf4+ {[%clk 0:01:34]}  Kd4 {[%clk 0:00:05]} 23. Qc4# {[%clk 0:01:33]} 1-0


[Site "https://www.chess.com"]